fUST/lending_fUST_20240726
["ID","MTS","AMOUNT","RATE_DAILY","PERIOD"]
[333242323,1721969600539,-500.0,0.00013698,2]
[333242324,1721969600561,-503.25823377,0.00013698,2]
[333242325,1721969600583,-500.0,0.00013698,2]
[333242326,1721969600605,-151.0,0.00013698,2]
[333242327,1721969600627,-151.0,0.00013698,2]
[333242328,1721969600649,-151.0,0.00013698,2]
[333242329,1721969600671,-151.0,0.00013698,2]
[333242330,1721969600693,-151.0,0.00013698,2]
[333242331,1721969600715,-502.67171535,0.00013698,2]
[333242332,1721969600737,-151.0,0.00013698,2]
[333242333,1721969600759,-151.0,0.00013698,2]
[333242334,1721969600782,-694.5,0.00013698,2]
[333242335,1721969600805,-500.0,0.00013698,2]
[333242336,1721969600830,-694.5,0.00013698,2]
[333242337,1721969601031,-694.5,0.00013698,2]
[333242338,1721969601128,-513.62782091,0.00013698,2]
[333242339,1721969601152,-694.5,0.00013698,2]
[333242340,1721969601176,-694.5,0.00013698,2]
[333242341,1721969601201,-694.5,0.00013698,2]
[333242342,1721969601225,-694.5,0.00013698,2]
[333242343,1721969601248,-694.5,0.00013698,2]
[333242344,1721969601272,-694.5,0.00013698,2]
[333242345,1721969601295,-151.0,0.00013698,2]
[333242346,1721969601317,-500.0,0.00013698,2]
[333242347,1721969601339,-151.0,0.00013698,2]
[333242348,1721969601363,-694.5,0.00013698,2]
[333242349,1721969601385,-151.0,0.00013698,2]
[333242350,1721969601410,-694.5,0.00013698,2]
[333242351,1721969601435,-694.5,0.00013698,2]
[333242352,1721969601457,-151.0,0.00013698,2]
[333242353,1721969601480,-694.5,0.00013698,2]
[333242354,1721969601504,-151.0,0.00013698,2]
[333242355,1721969601529,-694.5,0.00013698,2]
[333242356,1721969601556,-694.5,0.00013698,2]
[333242357,1721969601579,-151.0,0.00013698,2]
[333242358,1721969601604,-694.5,0.00013698,2]
[333242359,1721969601628,-151.0,0.00013698,2]
[333242360,1721969601653,-694.5,0.00013698,2]
[333242361,1721969601678,-694.5,0.00013698,2]
[333242362,1721969601704,-1070.39583549,0.00013698,2]
[333242387,1721970621529,10000.0,0.00024,60]
[333242577,1721970638396,-155.08928424,9.999e-05,2]
[333242579,1721970638406,-200.0,0.00013425,2]
[333242581,1721970638415,-991.41071576,0.00013598,2]
[333242583,1721970638427,-163.91001487,0.00013598,2]
[333242585,1721970638436,-11313.37798467,0.00013688,2]
[333242587,1721970638448,-10707.47631204,0.00013688,2]
[333242624,1721970640475,-5307.44717969,0.0001362,2]
[333242625,1721970640484,-367.53930495,0.00013677,2]
[333242626,1721970640494,-325045.42661329,0.00013688,2]
[333242627,1721970640503,-509.40211668,0.00013698,2]
[333242628,1721970640513,-1783.90729387,0.00013698,2]
[333242629,1721970640523,-503.61433218,0.00013698,2]
[333242630,1721970640533,-503.04489865,0.00013698,2]
[333242631,1721970640543,-507.20628239,0.00013698,2]
[333242632,1721970640553,-506.24815418,0.00013698,2]
[333242633,1721970640563,-500.55348274,0.00013698,2]
[333242634,1721970640729,-500.0,0.00013698,2]
[333242635,1721970640740,-500.0,0.00013698,2]
[333242636,1721970640751,-509.80395528,0.00013698,2]
[333242637,1721970640760,-501.58311684,0.00013698,2]
[333242638,1721970640770,-500.0,0.00013698,2]
[333242639,1721970640780,-500.0,0.00013698,2]
[333242640,1721970640790,-517.330174,0.00013698,2]
[333242641,1721970640801,-562.6930076,0.00013698,2]
[333242642,1721970640811,-500.0,0.00013698,2]
[333242643,1721970640822,-500.0,0.00013698,2]
[333242644,1721970640831,-500.0,0.00013698,2]
[333242645,1721970640841,-500.0,0.00013698,2]
[333242646,1721970640850,-500.0,0.00013698,2]
[333242647,1721970640860,-500.0,0.00013698,2]
[333242648,1721970640869,-592.86738694,0.00013698,2]
[333242649,1721970640879,-500.0,0.00013698,2]
[333242650,1721970640889,-515.03251969,0.00013698,2]
[333242651,1721970640898,-502.49066998,0.00013698,2]
[333242652,1721970640908,-506.86964681,0.00013698,2]
[333242653,1721970640918,-500.0,0.00013698,2]
[333242654,1721970640928,-500.0,0.00013698,2]
[333242655,1721970640937,-507.10437537,0.00013698,2]
[333242656,1721970640947,-506.38197011,0.00013698,2]
[333242657,1721970640956,-502.77452337,0.00013698,2]
[333242658,1721970640966,-2654.9,0.00013698,2]
[333242659,1721970640976,-2654.9,0.00013698,2]
[333242660,1721970640985,-2654.9,0.00013698,2]
[333242661,1721970640994,-2654.9,0.00013698,2]
[333242662,1721970641004,-2654.9,0.00013698,2]
[333242663,1721970641014,-2654.9,0.00013698,2]
[333242664,1721970641023,-2654.9,0.00013698,2]
[333242665,1721970641033,-2654.9,0.00013698,2]
[333242666,1721970641042,-2654.9,0.00013698,2]
[333242667,1721970641052,-2654.9,0.00013698,2]
[333242668,1721970641061,-2654.9,0.00013698,2]
[333242669,1721970641072,-2654.9,0.00013698,2]
[333242670,1721970641082,-2654.9,0.00013698,2]
[333242671,1721970641094,-2654.9,0.00013698,2]
[333242672,1721970641109,-2654.9,0.00013698,2]
[333242673,1721970641118,-2654.9,0.00013698,2]
[333242674,1721970641127,-2654.9,0.00013698,2]
[333242675,1721970641136,-2654.9,0.00013698,2]
[333242676,1721970641146,-500.0,0.00013698,2]
[333242677,1721970641158,-2654.9,0.00013698,2]
[333242678,1721970641167,-2654.9,0.00013698,2]
[333242679,1721970641178,-2654.9,0.00013698,2]
[333242680,1721970641187,-2654.9,0.00013698,2]
[333242681,1721970641197,-2654.9,0.00013698,2]
[333242682,1721970641206,-2654.98226985,0.00013698,2]
[333242683,1721970641216,-505.87563239,0.00013698,2]
[333242684,1721970641225,-534.68855558,0.00013698,2]
[333242685,1721970641235,-500.0,0.00013698,2]
[333242686,1721970641244,-503.88218785,0.00013698,2]
[333242687,1721970641254,-500.0,0.00013698,2]
[333242688,1721970641264,-500.0,0.00013698,2]
[333242689,1721970641273,-506.98915833,0.00013698,2]
[333242690,1721970641283,-501.10551533,0.00013698,2]
[333242691,1721970641294,-501.2481524,0.00013698,2]
[333242692,1721970641304,-500.0,0.00013698,2]
[333242693,1721970641314,-500.0,0.00013698,2]
[333242694,1721970641325,-507.48085616,0.00013698,2]
[333242695,1721970641335,-503.63376949,0.00013698,2]
[333242696,1721970641345,-500.0,0.00013698,2]
[333242697,1721970641354,-506.05120005,0.00013698,2]
[333242698,1721970641364,-507.20969745,0.00013698,2]
[333242699,1721970641374,-3861.48963333,0.00013698,2]
[333242700,1721970641383,-500.0,0.00013698,2]
[333242701,1721970641392,-519.42437233,0.00013698,2]
[333242702,1721970641402,-500.0,0.00013698,2]
[333242703,1721970641412,-500.0,0.00013698,2]
[333242704,1721970641421,-500.0,0.00013698,2]
[333242705,1721970641432,-507.56077782,0.00013698,2]
[333242706,1721970641441,-500.0,0.00013698,2]
[333242707,1721970641454,-500.0,0.00013698,2]
[333242708,1721970641465,-500.0,0.00013698,2]
[333242709,1721970641474,-506.48476977,0.00013698,2]
[333242710,1721970641484,-500.0,0.00013698,2]
[333242711,1721970641494,-500.0,0.00013698,2]
[333242712,1721970641503,-500.0,0.00013698,2]
[333242713,1721970641513,-574.78788849,0.00013698,2]
[333242714,1721970641523,-500.0,0.00013698,2]
[333242715,1721970641533,-500.0,0.00013698,2]
[333242716,1721970641543,-500.0,0.00013698,2]
[333242717,1721970641552,-501.70497388,0.00013698,2]
[333242718,1721970641562,-1038.59,0.00013698,2]
[333242719,1721970641573,-500.0,0.00013698,2]
[333242720,1721970641584,-500.0,0.00013698,2]
[333242721,1721970641593,-500.0,0.00013698,2]
[333242722,1721970641603,-500.0,0.00013698,2]
[333242723,1721970641612,-432.29984313,0.00013698,2]
[333242724,1721970641622,-311.68968242,0.00013698,2]
[333242725,1721970641632,-513.59250727,0.00013698,2]
[333242726,1721970641642,-502.67013176,0.00013698,2]
[333242727,1721970641652,-500.0,0.00013698,2]
[333242728,1721970641661,-500.0,0.00013698,2]
[333242729,1721970641671,-500.0,0.00013698,2]
[333242730,1721970641681,-500.0,0.00013698,2]
[333242731,1721970641690,-500.0,0.00013698,2]
[333242732,1721970641700,-500.0,0.00013698,2]
[333242733,1721970641710,-470.00421233,0.00013698,2]
[333242734,1721970641720,-500.0,0.00013698,2]
[333242735,1721970641730,-500.0,0.00013698,2]
[333242736,1721970641739,-500.0,0.00013698,2]
[333242737,1721970641749,-500.0,0.00013698,2]
[333242738,1721970641759,-500.0,0.00013698,2]
[333242739,1721970641768,-500.0,0.00013698,2]
[333242740,1721970641778,-151.0,0.00013698,2]
[333242741,1721970641788,-500.0,0.00013698,2]
[333242742,1721970641797,-500.0,0.00013698,2]
[333242743,1721970641807,-151.26329,0.00013698,2]
[333242744,1721970641817,-457.54401741,0.00013698,2]
[333242745,1721970641827,-500.0,0.00013698,2]
[333242746,1721970641836,-1163.94,0.00013698,2]
[333242747,1721970641846,-259.32795271,0.00013698,2]
[333242748,1721970641855,-500.0,0.00013698,2]
[333242749,1721970641865,-500.0,0.00013698,2]
[333242750,1721970641875,-243.778987,0.00013698,2]
[333242751,1721970641885,-500.0,0.00013698,2]
[333242752,1721970641895,-500.0,0.00013698,2]
[333242753,1721970641904,-502.99766997,0.00013698,2]
[333242754,1721970641914,-243.778987,0.00013698,2]
[333242755,1721970641923,-500.0,0.00013698,2]
[333242756,1721970641934,-500.0,0.00013698,2]
[333242757,1721970641946,-561.54,0.00013698,2]
[333242758,1721970641957,-819.81,0.00013698,2]
[333242759,1721970641967,-504.46436506,0.00013698,2]
[333242760,1721970641978,-500.0,0.00013698,2]
[333242761,1721970641989,-500.0,0.00013698,2]
[333242762,1721970642000,-500.0,0.00013698,2]
[333242763,1721970642013,-500.0,0.00013698,2]
[333242764,1721970642024,-500.0,0.00013698,2]
[333242765,1721970642034,-515.31335447,0.00013698,2]
[333242766,1721970642045,-500.0,0.00013698,2]
[333242767,1721970642054,-500.0,0.00013698,2]
[333242768,1721970642067,-500.0,0.00013698,2]
[333242769,1721970642077,-500.0,0.00013698,2]
[333242770,1721970642088,-500.0,0.00013698,2]
[333242771,1721970642100,-350.76287347,0.00013698,2]
[333242772,1721970642114,-500.58453657,0.00013698,2]
[333242773,1721970642125,-500.0,0.00013698,2]
[333242774,1721970642137,-500.0,0.00013698,2]
[333242775,1721970642150,-500.0,0.00013698,2]
[333242776,1721970642159,-500.0,0.00013698,2]
[333242777,1721970642169,-500.0,0.00013698,2]
[333242778,1721970642180,-500.0,0.00013698,2]
[333242779,1721970642190,-500.0,0.00013698,2]
[333242780,1721970642200,-500.0,0.00013698,2]
[333242781,1721970642210,-193.51712386,0.00013698,2]
[333242782,1721970642221,-223.39696642,0.00013698,2]
[333242783,1721970642232,-504.02751053,0.00013698,2]
[333242784,1721970642242,-500.0,0.00013698,2]
[333242785,1721970642252,-500.0,0.00013698,2]
[333242786,1721970642262,-502.1295564,0.00013698,2]
[333242787,1721970642272,-500.0,0.00013698,2]
[333242788,1721970642282,-1104.72,0.00013698,2]
[333242789,1721970642292,-1024.65,0.00013698,2]
[333242790,1721970642302,-500.0,0.00013698,2]
[333242791,1721970642313,-500.0,0.00013698,2]
[333242792,1721970642324,-500.0,0.00013698,2]
[333242793,1721970642335,-512.14634915,0.00013698,2]
[333242794,1721970642347,-500.0,0.00013698,2]
[333242795,1721970642358,-500.0,0.00013698,2]
[333242796,1721970642368,-503.19222684,0.00013698,2]
[333242797,1721970642377,-592.80057666,0.00013698,2]
[333242798,1721970642387,-500.0,0.00013698,2]
[333242799,1721970642397,-544.72,0.00013698,2]
[333242800,1721970642410,-500.0,0.00013698,2]
[333242801,1721970642420,-500.0,0.00013698,2]
[333242802,1721970642430,-500.0,0.00013698,2]
[333242803,1721970642440,-155.816202,0.00013698,2]
[333242804,1721970642450,-500.0,0.00013698,2]
[333242805,1721970642461,-500.0,0.00013698,2]
[333242806,1721970642471,-500.0,0.00013698,2]
[333242807,1721970642483,-500.0,0.00013698,2]
[333242808,1721970642492,-500.0,0.00013698,2]
[333242809,1721970642503,-500.0,0.00013698,2]
[333242810,1721970642513,-500.0,0.00013698,2]
[333242811,1721970642523,-500.0,0.00013698,2]
[333242812,1721970642533,-500.0,0.00013698,2]
[333242813,1721970642543,-500.0,0.00013698,2]
[333242814,1721970642554,-500.0,0.00013698,2]
[333242815,1721970642564,-500.0,0.00013698,2]
[333242816,1721970642575,-500.0,0.00013698,2]
[333242817,1721970642584,-500.0,0.00013698,2]
[333242818,1721970642593,-500.0,0.00013698,2]
[333242819,1721970642602,-475.97552572,0.00013698,2]
[333242820,1721970642611,-504.3600509,0.00013698,2]
[333242821,1721970642622,-500.0,0.00013698,2]
[333242822,1721970642633,-500.0,0.00013698,2]
[333242823,1721970642645,-500.0,0.00013698,2]
[333242824,1721970642655,-500.0,0.00013698,2]
[333242825,1721970642665,-500.8979793,0.00013698,2]
[333242826,1721970642675,-500.0,0.00013698,2]
[333242827,1721970642685,-255.70376863,0.00013698,2]
[333242828,1721970642695,-500.0,0.00013698,2]
[333242829,1721970642704,-116.59630349,0.00013698,2]
[333242904,1721970673953,3605.52,0.00024,60]
[333242918,1721970799507,2382.694496,0.000142,30]
[333242929,1721971392252,150.0,0.000142,30]
[333242936,1721971600132,-154.89018238,0.0001,2]
[333242937,1721971600159,-145.90629443,0.00012641,2]
[333243033,1721971838718,-225.04706201,0.00012641,2]
[333243034,1721971838728,-29836.82580059,0.00012641,2]
[333243050,1721971841513,-27782.88482891,0.00012641,2]
[333243299,1721973042768,-154.11354546,0.00012381,2]
[333243301,1721973042778,-367.53930495,0.00012573,2]
[333243303,1721973042788,-65.02287429,0.00012595,2]
[333243312,1721973042870,-2335.74200014,0.00012595,2]
[333243314,1721973042883,-1235.06,0.00012595,2]
[333243316,1721973042897,-941.54458302,0.00012595,2]
[333243318,1721973042907,-2744.26878406,0.00012641,2]
[333243320,1721973042917,-620.03598521,0.00013205,2]
[333243322,1721973042927,-500.0,0.00013246,2]
[333243324,1721973042937,-500.0,0.00013246,2]
[333243326,1721973042947,-500.0,0.00013246,2]
[333243328,1721973042957,-216.54994272,0.00013246,2]
[333243396,1721974233278,-206.38751396,9.801e-05,2]
[333243398,1721974233291,-773.2446176,0.00012145,2]
[333243400,1721974233302,-5307.44717969,0.00012888,2]
[333243403,1721974233312,-367.53930495,0.00012967,2]
[333243405,1721974233323,-3972.58061886,0.00013146,2]
[333243407,1721974233338,-620.00179926,0.00013172,2]
[333243409,1721974233350,-397.59157942,0.000132,2]
[333243411,1721974233362,-306.0,0.000132,2]
[333243414,1721974233375,-156.4544038,0.000132,2]
[333243416,1721974233387,-153.0,0.000132,2]
[333243419,1721974233399,-283.45005728,0.00013246,2]
[333243422,1721974233411,-500.0,0.00013246,2]
[333243426,1721974233423,-500.0,0.00013246,2]
[333243429,1721974233434,-500.0,0.00013246,2]
[333243432,1721974233445,-500.0,0.00013246,2]
[333243435,1721974233456,-500.0,0.00013246,2]
[333243439,1721974233468,-500.0,0.00013246,2]
[333243442,1721974233480,-500.0,0.00013246,2]
[333243445,1721974233491,-500.0,0.00013246,2]
[333243448,1721974233501,-500.0,0.00013246,2]
[333243452,1721974233513,-500.0,0.00013246,2]
[333243455,1721974233524,-500.0,0.00013246,2]
[333243458,1721974233535,-500.0,0.00013246,2]
[333243461,1721974233546,-500.0,0.00013246,2]
[333243464,1721974233557,-500.0,0.00013246,2]
[333243466,1721974233568,-500.0,0.00013246,2]
[333243468,1721974233579,-500.0,0.00013246,2]
[333243471,1721974233590,-500.0,0.00013246,2]
[333243473,1721974233601,-500.0,0.00013246,2]
[333243475,1721974233611,-500.0,0.00013246,2]
[333243477,1721974233622,-500.0,0.00013246,2]
[333243479,1721974233633,-500.0,0.00013246,2]
[333243482,1721974233646,-500.0,0.00013246,2]
[333243484,1721974233657,-500.0,0.00013246,2]
[333243486,1721974233669,-500.0,0.00013246,2]
[333243488,1721974233680,-500.0,0.00013246,2]
[333243490,1721974233690,-500.0,0.00013246,2]
[333243492,1721974233701,-500.0,0.00013246,2]
[333243494,1721974233713,-500.0,0.00013246,2]
[333243497,1721974233724,-500.0,0.00013246,2]
[333243499,1721974233735,-500.0,0.00013246,2]
[333243501,1721974233747,-500.0,0.00013246,2]
[333243503,1721974233758,-500.0,0.00013246,2]
[333243505,1721974233769,-500.0,0.00013246,2]
[333243507,1721974233781,-500.0,0.00013246,2]
[333243509,1721974233792,-500.0,0.00013246,2]
[333243511,1721974233802,-500.0,0.00013246,2]
[333243513,1721974233814,-500.0,0.00013246,2]
[333243515,1721974233824,-500.0,0.00013246,2]
[333243517,1721974233836,-500.0,0.00013246,2]
[333243519,1721974233848,-500.0,0.00013246,2]
[333243521,1721974233859,-500.0,0.00013246,2]
[333243523,1721974233870,-500.0,0.00013246,2]
[333243525,1721974233881,-642.7,0.00013246,2]
[333243528,1721974233895,-500.0,0.00013246,2]
[333243530,1721974233906,-500.0,0.00013246,2]
[333243532,1721974233917,-500.0,0.00013246,2]
[333243534,1721974233928,-500.0,0.00013246,2]
[333243536,1721974233938,-500.0,0.00013246,2]
[333243538,1721974233949,-500.0,0.00013246,2]
[333243540,1721974233960,-500.0,0.00013246,2]
[333243543,1721974233972,-500.0,0.00013246,2]
[333243545,1721974233983,-167.7,0.00013246,2]
[333243548,1721974234009,-7526.2952353,0.00013246,2]
[333243550,1721974234020,-293.9878237,0.000133,2]
[333243553,1721974234033,-153.0,0.000133,2]
[333243555,1721974234044,-153.0,0.000133,2]
[333243557,1721974234055,-293.916943,0.000133,2]
[333243559,1721974234066,-153.0,0.000133,2]
[333243561,1721974234077,-153.0,0.000133,2]
[333243563,1721974234088,-153.0,0.000133,2]
[333243565,1721974234099,-200.0,0.00013425,2]
[333243567,1721974234110,-189.2308441,0.000135,2]
[333243569,1721974234121,-153.0,0.000135,2]
[333243572,1721974234131,-293.9878237,0.000135,2]
[333243574,1721974234144,-1163.22042973,0.00013598,2]
[333243576,1721974234157,-953.0,0.000136,2]
[333243578,1721974234168,-153.0,0.000136,2]
[333243580,1721974234179,-153.0,0.000136,2]
[333243582,1721974234190,-324.97904296,0.00013655,2]
[333243585,1721974234205,-12566.11,0.0001368,2]
[333243587,1721974234216,-24051.96017724,0.00013688,2]
[333244193,1721974246103,-273.37336231,9.9e-05,2]
[333244196,1721974246115,-6427.62663768,0.00013688,2]
[333244369,1721975198767,-280.4651405,0.00012644,2]
[333244370,1721975198789,-20.33269773,0.0001334,2]
[333244413,1721975432311,-250.81599999,0.00013321,2]
[333244473,1721975438720,-1783.90729387,0.0001334,2]
[333244476,1721975438731,-1123.66250331,0.0001334,2]
[333244478,1721975438740,-200.0,0.00013425,2]
[333244480,1721975438750,-254.89020282,0.00013598,2]
[333244482,1721975438762,-792.00818391,0.00013598,2]
[333244484,1721975438772,-153.0,0.000136,2]
[333244486,1721975438783,-206.7446654,0.000136,2]
[333244488,1721975438793,-206.7446654,0.000136,2]
[333244490,1721975438804,-153.0,0.000136,2]
[333244492,1721975438814,-153.0,0.000136,2]
[333244494,1721975438823,-206.7446654,0.000136,2]
[333244496,1721975438833,-206.7446654,0.000136,2]
[333244498,1721975438842,-206.7446654,0.000136,2]
[333244500,1721975438851,-206.7446654,0.000136,2]
[333244502,1721975438862,-293.9641968,0.000136,2]
[333244504,1721975438872,-206.7446654,0.000136,2]
[333244506,1721975438881,-293.9878237,0.000136,2]
[333244508,1721975438893,-306.0,0.000136,2]
[333244510,1721975438903,-206.7446654,0.000136,2]
[333244512,1721975438913,-153.0,0.000136,2]
[333244515,1721975438923,-306.0,0.000136,2]
[333244517,1721975438935,-209591.41826957,0.00013668,2]
[333244754,1721975441594,-175120.04129343,0.00013668,2]
[333244756,1721975441604,-3146.39353007,0.00013688,2]
[333244758,1721975441615,-156.0,0.0001369,2]
[333244760,1721975441624,-441.81907341,0.00013698,2]
[333244762,1721975441634,-538.14,0.00013698,2]
[333244764,1721975441645,-506.72955264,0.00013698,2]
[333244766,1721975441654,-500.0,0.00013698,2]
[333244768,1721975441665,-231.10271594,0.00013698,2]
[333244770,1721975441678,-500.0,0.00013698,2]
[333244772,1721975441688,-500.0,0.00013698,2]
[333244773,1721975441698,-500.0,0.00013698,2]
[333244775,1721975441708,-500.0,0.00013698,2]
[333244777,1721975441718,-500.0,0.00013698,2]
[333244778,1721975441727,-512.50882319,0.00013698,2]
[333244780,1721975441738,-500.0,0.00013698,2]
[333244781,1721975441749,-500.0,0.00013698,2]
[333244782,1721975441760,-500.0,0.00013698,2]
[333244783,1721975441769,-151.0,0.00013698,2]
[333244784,1721975441780,-151.0,0.00013698,2]
[333244785,1721975441792,-1058.69,0.00013698,2]
[333244786,1721975441801,-500.0,0.00013698,2]
[333244787,1721975441812,-500.0,0.00013698,2]
[333244788,1721975441822,-500.0,0.00013698,2]
[333244789,1721975441832,-500.0,0.00013698,2]
[333244790,1721975441844,-500.0,0.00013698,2]
[333244792,1721975441855,-500.0,0.00013698,2]
[333244794,1721975441867,-500.0,0.00013698,2]
[333244796,1721975441878,-500.0,0.00013698,2]
[333244797,1721975441888,-500.0,0.00013698,2]
[333244799,1721975441899,-500.0,0.00013698,2]
[333244800,1721975441910,-500.0,0.00013698,2]
[333244801,1721975441920,-500.0,0.00013698,2]
[333244802,1721975441929,-500.0,0.00013698,2]
[333244803,1721975441939,-500.0,0.00013698,2]
[333244804,1721975441949,-500.0,0.00013698,2]
[333244805,1721975441959,-457.91919366,0.00013698,2]
[333244806,1721975441969,-500.0,0.00013698,2]
[333244807,1721975441979,-578.68,0.00013698,2]
[333244808,1721975441989,-500.0,0.00013698,2]
[333244809,1721975441999,-500.0,0.00013698,2]
[333244810,1721975442009,-500.0,0.00013698,2]
[333244811,1721975442019,-502.8022064,0.00013698,2]
[333244812,1721975442029,-500.0,0.00013698,2]
[333244813,1721975442041,-500.0,0.00013698,2]
[333244814,1721975442051,-500.0,0.00013698,2]
[333244815,1721975442062,-500.0,0.00013698,2]
[333244816,1721975442073,-500.0,0.00013698,2]
[333244817,1721975442085,-500.0,0.00013698,2]
[333244818,1721975442095,-500.0,0.00013698,2]
[333244819,1721975442105,-423.09693936,0.00013698,2]
[333244820,1721975442115,-500.0,0.00013698,2]
[333244821,1721975442125,-500.0,0.00013698,2]
[333244822,1721975442135,-500.0,0.00013698,2]
[333244823,1721975442145,-502.50536988,0.00013698,2]
[333244824,1721975442154,-502.64021438,0.00013698,2]
[333244825,1721975442164,-500.0,0.00013698,2]
[333244826,1721975442174,-799.98,0.00013698,2]
[333244827,1721975442183,-1245.42,0.00013698,2]
[333244828,1721975442193,-500.0,0.00013698,2]
[333244829,1721975442202,-500.0,0.00013698,2]
[333244830,1721975442212,-503.68964469,0.00013698,2]
[333244831,1721975442221,-184.80927451,0.00013698,2]
[333244832,1721975442231,-685.7,0.00013698,2]
[333244833,1721975442240,-500.0,0.00013698,2]
[333244834,1721975442250,-510.89486563,0.00013698,2]
[333244835,1721975442259,-151.0,0.00013698,2]
[333244836,1721975442269,-151.0,0.00013698,2]
[333244837,1721975442279,-151.0,0.00013698,2]
[333244838,1721975442288,-156.052143,0.00013698,2]
[333244839,1721975442298,-503.83473535,0.00013698,2]
[333244840,1721975442307,-513.2,0.00013698,2]
[333244841,1721975442318,-500.0,0.00013698,2]
[333244842,1721975442327,-500.0,0.00013698,2]
[333244843,1721975442337,-504.14963923,0.00013698,2]
[333244844,1721975442347,-151.0,0.00013698,2]
[333244845,1721975442357,-151.0,0.00013698,2]
[333244846,1721975442367,-151.0,0.00013698,2]
[333244847,1721975442376,-151.0,0.00013698,2]
[333244848,1721975442385,-500.0,0.00013698,2]
[333244849,1721975442395,-151.0,0.00013698,2]
[333244850,1721975442405,-151.0,0.00013698,2]
[333244851,1721975442416,-151.0,0.00013698,2]
[333244852,1721975442426,-151.0,0.00013698,2]
[333244853,1721975442436,-278.675298,0.00013698,2]
[333244854,1721975442446,-500.0,0.00013698,2]
[333244855,1721975442456,-500.0,0.00013698,2]
[333244856,1721975442466,-500.0,0.00013698,2]
[333244857,1721975442476,-500.0,0.00013698,2]
[333244858,1721975442486,-500.0,0.00013698,2]
[333244859,1721975442495,-500.0,0.00013698,2]
[333244860,1721975442505,-505.47502758,0.00013698,2]
[333244861,1721975442514,-500.0,0.00013698,2]
[333244862,1721975442524,-500.0,0.00013698,2]
[333244863,1721975442534,-500.0,0.00013698,2]
[333244864,1721975442544,-500.0,0.00013698,2]
[333244865,1721975442556,-500.0,0.00013698,2]
[333244866,1721975442567,-500.0,0.00013698,2]
[333244867,1721975442577,-500.0,0.00013698,2]
[333244868,1721975442587,-500.0,0.00013698,2]
[333244869,1721975442600,-500.0,0.00013698,2]
[333244870,1721975442610,-500.0,0.00013698,2]
[333244871,1721975442620,-500.0,0.00013698,2]
[333244872,1721975442630,-500.0,0.00013698,2]
[333244873,1721975442641,-500.0,0.00013698,2]
[333244874,1721975442651,-500.0,0.00013698,2]
[333244875,1721975442661,-500.0,0.00013698,2]
[333244876,1721975442673,-500.0,0.00013698,2]
[333244877,1721975442683,-502.26495527,0.00013698,2]
[333244878,1721975442693,-500.0,0.00013698,2]
[333244879,1721975442703,-500.0,0.00013698,2]
[333244880,1721975442713,-500.0,0.00013698,2]
[333244882,1721975442723,-500.0,0.00013698,2]
[333244884,1721975442733,-500.0,0.00013698,2]
[333244886,1721975442743,-500.0,0.00013698,2]
[333244889,1721975442752,-500.0,0.00013698,2]
[333244892,1721975442762,-500.0,0.00013698,2]
[333244897,1721975442778,-500.0,0.00013698,2]
[333244900,1721975442794,-500.0,0.00013698,2]